[Event "ETCC Women 2013"]
[Site "Warsaw"]
[Date "2013.11.08"]
[Round "1"]
[White "Gara, Anita"]
[Black "Revo, Tatiana"]
[Result "1-0"]
[ECO "B52"]
[WhiteElo "2311"]
[BlackElo "2075"]
[PlyCount "165"]
[EventDate "2013.??.??"]
[EventCountry "POL"]
[WhiteTeam "Hungary"]
[BlackTeam "Belarus"]
[WhiteTeamCountry "HUN"]
[BlackTeamCountry "BLR"]
[TimeControl "40/5400+30:1800+30"]

1. e4 {[%emt 0:00:00]} c5 {[%emt 0:00:00]} 2. Nf3 {[%emt 0:00:00]} d6 {[%emt 0:
00:00]} 3. Bb5+ {[%emt 0:00:00]} Bd7 {[%emt 0:00:00]} 4. Bxd7+ {[%emt 0:00:07]}
Qxd7 {[%emt 0:00:00]} 5. O-O {[%emt 0:00:17]} Nf6 {[%emt 0:00:02]} 6. e5 {
[%emt 0:00:33]} dxe5 {[%emt 0:00:06]} 7. Nxe5 {[%emt 0:00:04]} Qc8 {[%emt 0:00:
05]} 8. Qf3 {[%emt 0:01:21]} e6 {[%emt 0:01:07]} 9. Nc3 {[%emt 0:00:32]} Be7 {
[%emt 0:01:18]} 10. d3 {[%emt 0:00:13]} O-O {[%emt 0:00:27]} 11. Bf4 {[%emt 0:
00:23]} Nfd7 {[%emt 0:01:22]} 12. Nc4 {[%emt 0:01:44]} Nc6 {[%emt 0:03:44]} 13.
Nb5 {[%emt 0:05:51]} a6 {[%emt 0:22:46]} 14. Nbd6 {[%emt 0:01:24]} Nd4 {[%emt
0:04:31]} 15. Qd1 {[%emt 0:13:57]} Qc7 {[%emt 0:12:22]} 16. c3 {[%emt 0:29:27]}
e5 {[%emt 0:12:39]} 17. cxd4 {[%emt 0:02:47]} exf4 {[%emt 0:00:14]} 18. Nf5 {
[%emt 0:02:04]} Bf6 {[%emt 0:00:37]} 19. dxc5 {[%emt 0:08:44]} Qxc5 {[%emt 0:
09:44]} 20. Qg4 {[%emt 0:01:44]} Ne5 {[%emt 0:06:17]} 21. Nxe5 {[%emt 0:00:13]}
Qxe5 {[%emt 0:00:08]} 22. d4 {[%emt 0:00:41]} Qd5 {[%emt 0:03:57]} 23. Qxg7+ {
[%emt 0:06:43]} Bxg7 {[%emt 0:00:05]} 24. Ne7+ {[%emt 0:00:03]} Kh8 {[%emt 0:
00:07]} 25. Nxd5 {[%emt 0:00:03]} f3 {[%emt 0:01:29]} 26. gxf3 {[%emt 0:01:10]}
Rad8 {[%emt 0:03:38]} 27. Ne3 {[%emt 0:02:34]} Rxd4 {[%emt 0:03:09]} 28. Rfd1 {
[%emt 0:06:09]} b5 {[%emt 0:06:16]} 29. b3 {[%emt 0:01:55]} Rh4 {[%emt 0:01:12]
} 30. Nf5 {[%emt 0:06:31]} Rh5 {[%emt 0:00:49]} 31. Nxg7 {[%emt 0:01:39]} Kxg7
{[%emt 0:00:07]} 32. Rd6 {[%emt 0:00:43]} Rg5+ {[%emt 0:01:13]} 33. Kf1 {[%emt
0:00:55]} Rc8 {[%emt 0:02:09]} 34. Rad1 {[%emt 0:01:15]} Rc2 {[%emt 0:00:37]}
35. R6d2 {[%emt 0:00:39]} Rgc5 {[%emt 0:00:12]} 36. Ke2 {[%emt 0:00:15]} Re5+ {
[%emt 0:00:25]} 37. Kf1 {[%emt 0:02:47]} Rec5 {[%emt 0:00:06]} 38. f4 {[%emt 0:
00:56]} Rc6 {[%emt 0:01:27]} 39. Ke2 {[%emt 0:00:17]} Re6+ {[%emt 0:01:31]} 40.
Kf3 {[%emt 0:00:00]} Rxd2 {[%emt 0:00:00]} 41. Rxd2 {[%emt 0:00:18]} Rh6 {
[%emt 0:03:36]} 42. Kg3 {[%emt 0:05:23]} Rg6+ {[%emt 0:00:30]} 43. Kf3 {[%emt
0:00:27]} Rh6 {[%emt 0:00:07]} 44. f5 {[%emt 0:02:56]} Rxh2 {[%emt 0:06:29]}
45. f6+ {[%emt 0:00:13]} Kxf6 {[%emt 0:00:06]} 46. Rd6+ {[%emt 0:00:04]} Kg7 {
[%emt 0:10:00]} 47. Rxa6 {[%emt 0:00:04]} Rh5 {[%emt 0:00:11]} 48. Ra5 {[%emt
0:09:31]} Rf5+ {[%emt 0:06:26]} 49. Kg3 {[%emt 0:00:35]} Rc5 {[%emt 0:01:39]}
50. b4 {[%emt 0:01:32]} Rg5+ {[%emt 0:01:27]} 51. Kf4 {[%emt 0:00:50]} h6 {
[%emt 0:00:33]} 52. Ke4 {[%emt 0:01:37]} Kf6 {[%emt 0:05:08]} 53. a3 {[%emt 0:
02:22]} h5 {[%emt 0:00:43]} 54. f4 {[%emt 0:00:33]} Rg3 {[%emt 0:00:30]} 55.
Rxb5 {[%emt 0:00:50]} Rxa3 {[%emt 0:00:06]} 56. Rxh5 {[%emt 0:00:13]} Rb3 {
[%emt 0:00:05]} 57. Rb5 {[%emt 0:01:22]} Ke6 {[%emt 0:02:42]} 58. Rb6+ {[%emt
0:03:42]} Kd7 {[%emt 0:00:22]} 59. Kd4 {[%emt 0:00:49]} Kc7 {[%emt 0:00:31]}
60. Kc4 {[%emt 0:00:22]} Re3 {[%emt 0:00:50]} 61. Rf6 {[%emt 0:00:09]} Re7 {
[%emt 0:00:12]} 62. Kc5 {[%emt 0:01:00]} Rd7 {[%emt 0:00:11]} 63. b5 {[%emt 0:
00:36]} Kb7 {[%emt 0:00:51]} 64. f5 {[%emt 0:01:45]} Kc7 {[%emt 0:00:19]} 65.
Rc6+ {[%emt 0:00:13]} Kb7 {[%emt 0:00:06]} 66. Rd6 {[%emt 0:01:02]} Re7 {[%emt
0:00:10]} 67. f6 {[%emt 0:01:17]} Rc7+ {[%emt 0:00:43]} 68. Kd5 {[%emt 0:00:59]
} Kb8 {[%emt 0:00:30]} 69. Rd8+ {[%emt 0:01:15]} Kb7 {[%emt 0:00:08]} 70. Kd6 {
[%emt 0:00:35]} Rc1 {[%emt 0:00:17]} 71. Rd7+ {[%emt 0:00:53]} Kb6 {[%emt 0:00:
04]} 72. Rxf7 {[%emt 0:00:20]} Rd1+ {[%emt 0:00:40]} 73. Ke6 {[%emt 0:00:27]}
Re1+ {[%emt 0:00:09]} 74. Kf5 {[%emt 0:00:51]} Kxb5 {[%emt 0:00:27]} 75. Rc7 {
[%emt 0:00:11]} Kb6 {[%emt 0:00:09]} 76. Rc2 {[%emt 0:00:39]} Rf1+ {[%emt 0:00:
05]} 77. Kg6 {[%emt 0:00:06]} Rg1+ {[%emt 0:00:06]} 78. Kf7 {[%emt 0:00:26]}
Rf1 {[%emt 0:02:08]} 79. Kg7 {[%emt 0:00:08]} Rg1+ {[%emt 0:00:25]} 80. Kf8 {
[%emt 0:00:04]} Ra1 {[%emt 0:00:33]} 81. f7 {[%emt 0:00:15]} Ra8+ {[%emt 0:00:
22]} 82. Kg7 {[%emt 0:00:24]} Ra7 {[%emt 0:00:04]} 83. Kg8 {[%emt 0:00:05]} 1-0

[Event "ETCC Women 2013"]
[Site "Warsaw"]
[Date "2013.11.08"]
[Round "1"]
[White "Hoang, Thanh Trang"]
[Black "Ziaziulkina, Nastassia"]
[Result "0-1"]
[ECO "A46"]
[WhiteElo "2511"]
[BlackElo "2350"]
[PlyCount "80"]
[EventDate "2013.??.??"]
[EventCountry "POL"]
[WhiteTeam "Hungary"]
[BlackTeam "Belarus"]
[WhiteTeamCountry "HUN"]
[BlackTeamCountry "BLR"]
[TimeControl "40/5400+30:1800+30"]

1. d4 {[%emt 0:00:00]} Nf6 {[%emt 0:00:00]} 2. Nf3 {[%emt 0:01:27]} e6 {[%emt
0:01:27]} 3. Bf4 {[%emt 0:01:53]} c5 {[%emt 0:01:57]} 4. e3 {[%emt 0:00:36]} d5
{[%emt 0:00:05]} 5. Nbd2 {[%emt 0:01:45]} Bd6 {[%emt 0:03:04]} 6. Bg3 {[%emt 0:
01:09]} O-O {[%emt 0:01:15]} 7. c3 {[%emt 0:01:31]} Qc7 {[%emt 0:01:59]} 8. Ne5
{[%emt 0:11:12]} Nfd7 {[%emt 0:09:40]} 9. Bd3 {[%emt 0:07:19]} Nc6 {[%emt 0:23:
39]} 10. f4 {[%emt 0:10:16]} f6 {[%emt 0:05:14]} 11. Qh5 {[%emt 0:03:24]} f5 {
[%emt 0:00:33]} 12. Bh4 {[%emt 0:02:37]} Qb6 {[%emt 0:10:52]} 13. Rb1 {[%emt 0:
09:50]} cxd4 {[%emt 0:18:54]} 14. exd4 {[%emt 0:01:44]} Bxe5 {[%emt 0:01:14]}
15. fxe5 {[%emt 0:01:34]} Nxd4 {[%emt 0:00:10]} 16. cxd4 {[%emt 0:07:39]} Qxd4
{[%emt 0:00:03]} 17. Be2 {[%emt 0:02:32]} Nxe5 {[%emt 0:01:49]} 18. Bf2 {[%emt
0:03:10]} Nd3+ {[%emt 0:02:13]} 19. Bxd3 {[%emt 0:00:15]} Qxd3 {[%emt 0:00:01]}
20. Qf3 {[%emt 0:02:11]} Qb5 {[%emt 0:06:51]} 21. Bd4 {[%emt 0:03:45]} f4 {
[%emt 0:04:05]} 22. Be5 {[%emt 0:04:26]} Rf5 {[%emt 0:00:51]} 23. Qc3 {[%emt 0:
00:48]} d4 {[%emt 0:02:26]} 24. Bxd4 {[%emt 0:00:24]} e5 {[%emt 0:00:34]} 25.
a4 {[%emt 0:03:09]} Qd5 {[%emt 0:02:13]} 26. Bf2 {[%emt 0:01:21]} e4 {[%emt 0:
00:39]} 27. Bd4 {[%emt 0:04:41]} Rg5 {[%emt 0:00:55]} 28. O-O {[%emt 0:00:56]}
e3 {[%emt 0:00:02]} 29. Nf3 {[%emt 0:02:33]} Bh3 {[%emt 0:00:04]} 30. g3 {
[%emt 0:04:40]} Rf8 {[%emt 0:01:33]} 31. Qc2 {[%emt 0:02:04]} Rg6 {[%emt 0:00:
22]} 32. Qc5 {[%emt 0:01:04]} Qe4 {[%emt 0:00:27]} 33. Nh4 {[%emt 0:01:46]} e2
{[%emt 0:00:23]} 34. Qxf8+ {[%emt 0:02:27]} Kxf8 {[%emt 0:00:02]} 35. Nxg6+ {
[%emt 0:00:43]} Qxg6 {[%emt 0:00:03]} 36. Rxf4+ {[%emt 0:00:08]} Kg8 {[%emt 0:
00:58]} 37. Re1 {[%emt 0:00:18]} Bf1 {[%emt 0:00:29]} 38. a5 {[%emt 0:01:02]}
Qd3 {[%emt 0:01:08]} 39. Bc3 {[%emt 0:00:39]} Qe3+ {[%emt 0:00:25]} 40. Kh1 {
[%emt 0:00:00]} Bh3 {[%emt 0:00:00]} 0-1

[Event "ETCC Women 2013"]
[Site "Warsaw"]
[Date "2013.11.08"]
[Round "1"]
[White "Nevioselaya, Maria"]
[Black "Papp, Petra"]
[Result "0-1"]
[ECO "B53"]
[WhiteElo "2074"]
[BlackElo "2300"]
[PlyCount "116"]
[EventDate "2013.??.??"]
[EventCountry "POL"]
[WhiteTeam "Belarus"]
[BlackTeam "Hungary"]
[WhiteTeamCountry "BLR"]
[BlackTeamCountry "HUN"]
[TimeControl "40/5400+30:1800+30"]

1. e4 {[%emt 0:00:00]} c5 {[%emt 0:00:00]} 2. Nf3 {[%emt 0:00:00]} d6 {[%emt 0:
00:00]} 3. d4 {[%emt 0:00:00]} cxd4 {[%emt 0:00:05]} 4. Qxd4 {[%emt 0:00:00]}
Nc6 {[%emt 0:01:17]} 5. Bb5 {[%emt 0:00:00]} Bd7 {[%emt 0:01:00]} 6. Bxc6 {
[%emt 0:00:00]} Bxc6 {[%emt 0:00:21]} 7. Nc3 {[%emt 0:00:03]} Nf6 {[%emt 0:01:
13]} 8. Bg5 {[%emt 0:00:08]} e6 {[%emt 0:01:03]} 9. O-O-O {[%emt 0:00:11]} Be7
{[%emt 0:00:55]} 10. Qd3 {[%emt 0:00:10]} Qa5 {[%emt 0:00:58]} 11. h4 {[%emt 0:
00:09]} h6 {[%emt 0:01:44]} 12. Bxf6 {[%emt 0:00:12]} Bxf6 {[%emt 0:01:33]} 13.
Nd4 {[%emt 0:00:10]} O-O {[%emt 0:08:42]} 14. f4 {[%emt 0:03:19]} Qb6 {[%emt 0:
22:39]} 15. Nde2 {[%emt 0:08:55]} Rfd8 {[%emt 0:05:36]} 16. g4 {[%emt 0:02:51]}
d5 {[%emt 0:04:15]} 17. e5 {[%emt 0:01:05]} d4 {[%emt 0:01:59]} 18. Ne4 {[%emt
0:09:54]} Bb5 {[%emt 0:04:00]} 19. Qf3 {[%emt 0:03:34]} Be7 {[%emt 0:02:28]}
20. g5 {[%emt 0:12:06]} Rac8 {[%emt 0:08:27]} 21. gxh6 {[%emt 0:08:57]} g6 {
[%emt 0:12:07]} 22. h5 {[%emt 0:16:09]} Kh7 {[%emt 0:00:53]} 23. Ng5+ {[%emt 0:
03:04]} Bxg5 {[%emt 0:01:24]} 24. fxg5 {[%emt 0:00:08]} Qc7 {[%emt 0:00:28]}
25. Rd2 {[%emt 0:02:27]} d3 {[%emt 0:08:11]} 26. Qf6 {[%emt 0:02:45]} Rg8 {
[%emt 0:00:22]} 27. Nd4 {[%emt 0:05:27]} Bc4 {[%emt 0:03:31]} 28. Rf1 {[%emt 0:
06:31]} Rcf8 {[%emt 0:00:14]} 29. b3 {[%emt 0:01:05]} Qc5 {[%emt 0:03:42]} 30.
Qf4 {[%emt 0:02:18]} Ba6 {[%emt 0:01:21]} 31. Kb2 {[%emt 0:04:58]} gxh5 {[%emt
0:01:41]} 32. cxd3 {[%emt 0:00:41]} Qe7 {[%emt 0:02:35]} 33. Qe4+ {[%emt 0:01:
15]} Kh8 {[%emt 0:00:48]} 34. Rf6 {[%emt 0:03:25]} Rxg5 {[%emt 0:00:07]} 35.
Rdf2 {[%emt 0:01:14]} Rg4 {[%emt 0:00:48]} 36. R2f4 {[%emt 0:01:43]} Rxf4 {
[%emt 0:00:45]} 37. Qxf4 {[%emt 0:00:06]} Bxd3 {[%emt 0:00:42]} 38. Nxe6 {
[%emt 0:00:38]} Rc8 {[%emt 0:00:19]} 39. Nd4 {[%emt 0:03:14]} Qc5 {[%emt 0:00:
44]} 40. Rc6 {[%emt 0:00:00]} Rxc6 {[%emt 0:00:00]} 41. Nxc6 {[%emt 0:01:48]}
Qxc6 {[%emt 0:07:25]} 42. e6 {[%emt 0:00:12]} Qxe6 {[%emt 0:08:15]} 43. Qd4+ {
[%emt 0:00:12]} f6 {[%emt 0:00:07]} 44. Qxd3 {[%emt 0:00:24]} Qe5+ {[%emt 0:01:
57]} 45. Kc2 {[%emt 0:00:07]} Qg5 {[%emt 0:02:04]} 46. Qd8+ {[%emt 0:04:18]}
Kh7 {[%emt 0:00:18]} 47. Qe7+ {[%emt 0:00:13]} Kxh6 {[%emt 0:00:20]} 48. Qxb7 {
[%emt 0:00:21]} Qc5+ {[%emt 0:00:47]} 49. Kd3 {[%emt 0:00:42]} h4 {[%emt 0:00:
53]} 50. b4 {[%emt 0:00:44]} Qf5+ {[%emt 0:02:41]} 51. Ke3 {[%emt 0:02:16]}
Qe6+ {[%emt 0:03:30]} 52. Kf3 {[%emt 0:02:26]} Qxa2 {[%emt 0:00:48]} 53. Qe7 {
[%emt 0:01:37]} Qb3+ {[%emt 0:00:52]} 54. Kf2 {[%emt 0:00:29]} Qg3+ {[%emt 0:
01:24]} 55. Kf1 {[%emt 0:00:05]} Qf4+ {[%emt 0:01:45]} 56. Kg2 {[%emt 0:00:18]}
Qg5+ {[%emt 0:00:15]} 57. Kh1 {[%emt 0:02:16]} h3 {[%emt 0:00:24]} 58. Qf8+ {
[%emt 0:00:11]} Qg7 {[%emt 0:00:22]} 0-1

[Event "ETCC Women 2013"]
[Site "Warsaw"]
[Date "2013.11.08"]
[Round "1"]
[White "Stetsko, Lanita"]
[Black "Gara, Ticia"]
[Result "1-0"]
[ECO "B52"]
[WhiteElo "2226"]
[BlackElo "2350"]
[PlyCount "89"]
[EventDate "2013.??.??"]
[EventCountry "POL"]
[WhiteTeam "Belarus"]
[BlackTeam "Hungary"]
[WhiteTeamCountry "BLR"]
[BlackTeamCountry "HUN"]
[TimeControl "40/5400+30:1800+30"]

1. e4 c5 2. Nf3 d6 3. Bb5+ Bd7 4. Bxd7+ Qxd7 5. c4 Nf6 6. Nc3 g6 7. d4 cxd4 8.
Nxd4 Bg7 9. h3 O-O 10. O-O Nc6 11. Be3 Rfc8 12. b3 Qd8 13. Rc1 a6 14. a4 Rab8
15. Qd3 Nd7 16. Rfd1 Nc5 17. Qb1 Nxd4 18. Bxd4 Bh6 19. Rc2 Ne6 20. Be3 Bxe3 21.
fxe3 f6 22. Rf2 Nc5 23. b4 Nd7 24. c5 Qe8 25. Qb3+ Qf7 26. Nd5 Kg7 27. cxd6
exd6 28. Rdf1 Rf8 29. Rc2 Qe6 30. Qd3 Ne5 31. Nc7 Qf7 32. Qxd6 Kg8 33. Nd5 Rbd8
34. Nxf6+ Qxf6 35. Qxf6 Rxf6 36. Rxf6 Rd1+ 37. Rf1 Rd3 38. Rc8+ Kg7 39. Rc7+
Kh6 40. Rxb7 Rxe3 41. b5 axb5 42. Rxb5 Rxe4 43. a5 Nd3 44. Ra1 Re2 45. a6 1-0

[Event "ETCC Open 2013"]
[Site "Warsaw"]
[Date "2013.11.08"]
[Round "1"]
[White "Hauge, Lars Oskar"]
[Black "Zhigalko, Andrey"]
[Result "0-1"]
[ECO "B12"]
[WhiteElo "2301"]
[BlackElo "2619"]
[PlyCount "66"]
[EventDate "2013.??.??"]
[EventCountry "POL"]
[WhiteTeam "Norway"]
[BlackTeam "Belarus"]
[WhiteTeamCountry "NOR"]
[BlackTeamCountry "BLR"]
[TimeControl "40/5400+30:1800+30"]

1. e4 {[%emt 0:00:00]} c6 {[%emt 0:00:00]} 2. d4 {[%emt 0:00:00]} d5 {[%emt 0:
00:00]} 3. e5 {[%emt 0:00:32]} Bf5 {[%emt 0:00:00]} 4. Nf3 {[%emt 0:00:24]} e6
{[%emt 0:00:00]} 5. Be2 {[%emt 0:00:06]} c5 {[%emt 0:00:05]} 6. c4 {[%emt 0:12:
37]} dxc4 {[%emt 0:00:48]} 7. Bxc4 {[%emt 0:02:48]} Nc6 {[%emt 0:02:22]} 8. O-O
{[%emt 0:09:39]} cxd4 {[%emt 0:04:41]} 9. Bb5 {[%emt 0:07:58]} Bc5 {[%emt 0:12:
54]} 10. b4 {[%emt 0:12:05]} Bb6 {[%emt 0:01:10]} 11. Bg5 {[%emt 0:15:45]} Nge7
{[%emt 0:18:44]} 12. Nbd2 {[%emt 0:05:32]} O-O {[%emt 0:01:22]} 13. Bxc6 {
[%emt 0:00:14]} bxc6 {[%emt 0:00:14]} 14. Nc4 {[%emt 0:00:08]} c5 {[%emt 0:14:
24]} 15. Nd6 {[%emt 0:06:47]} cxb4 {[%emt 0:21:23]} 16. Nxd4 {[%emt 0:04:47]}
Qd7 {[%emt 0:09:08]} 17. Bxe7 {[%emt 0:01:53]} Qxe7 {[%emt 0:00:08]} 18. Rc1 {
[%emt 0:01:28]} Bg6 {[%emt 0:01:02]} 19. Nc6 {[%emt 0:00:50]} Qg5 {[%emt 0:01:
36]} 20. Rc4 {[%emt 0:03:21]} f5 {[%emt 0:02:46]} 21. Rxb4 {[%emt 0:05:40]} f4
{[%emt 0:00:18]} 22. Qb3 {[%emt 0:01:16]} Kh8 {[%emt 0:01:58]} 23. Qxe6 {[%emt
0:01:51]} Bd3 {[%emt 0:01:11]} 24. Rd1 {[%emt 0:02:58]} Qh5 {[%emt 0:02:31]}
25. Rc1 {[%emt 0:02:54]} Bxf2+ {[%emt 0:00:35]} 26. Kh1 {[%emt 0:00:21]} f3 {
[%emt 0:01:19]} 27. Qg4 {[%emt 0:01:01]} Qxg4 {[%emt 0:00:16]} 28. Rxg4 {[%emt
0:00:01]} Be3 {[%emt 0:00:10]} 29. gxf3 {[%emt 0:00:35]} Bxc1 {[%emt 0:00:06]}
30. e6 {[%emt 0:00:03]} Ba3 {[%emt 0:01:12]} 31. e7 {[%emt 0:00:19]} Bxd6 {
[%emt 0:00:11]} 32. exf8=R+ {[%emt 0:00:07]} Bxf8 {[%emt 0:00:46]} 33. Ne5 {
[%emt 0:00:02]} Bg6 {[%emt 0:00:15]} 0-1

[Event "ETCC Open 2013"]
[Site "Warsaw"]
[Date "2013.11.08"]
[Round "1"]
[White "Meier, Georg"]
[Black "Raznikov, Danny"]
[Result "1/2-1/2"]
[ECO "A20"]
[WhiteElo "2623"]
[BlackElo "2481"]
[PlyCount "87"]
[EventDate "2013.??.??"]
[EventCountry "POL"]
[WhiteTeam "Germany"]
[BlackTeam "Israel"]
[WhiteTeamCountry "GER"]
[BlackTeamCountry "ISR"]
[TimeControl "40/5400+30:1800+30"]

1. c4 {[%emt 0:00:00]} e5 {[%emt 0:00:00]} 2. g3 {[%emt 0:00:00]} Nf6 {[%emt 0:
00:30]} 3. Bg2 {[%emt 0:03:16]} c6 {[%emt 0:00:53]} 4. d4 {[%emt 0:02:32]} Bb4+
{[%emt 0:00:45]} 5. Bd2 {[%emt 0:01:51]} Bxd2+ {[%emt 0:00:26]} 6. Qxd2 {[%emt
0:00:03]} d6 {[%emt 0:01:11]} 7. Nc3 {[%emt 0:01:52]} O-O {[%emt 0:02:16]} 8.
e4 {[%emt 0:13:25]} Nbd7 {[%emt 0:05:53]} 9. Nge2 {[%emt 0:02:58]} a6 {[%emt 0:
03:25]} 10. O-O {[%emt 0:21:44]} b5 {[%emt 0:03:13]} 11. Rfd1 {[%emt 0:03:40]}
Bb7 {[%emt 0:15:36]} 12. dxe5 {[%emt 0:10:35]} dxe5 {[%emt 0:04:05]} 13. Bh3 {
[%emt 0:00:45]} Nb6 {[%emt 0:17:08]} 14. Qe3 {[%emt 0:06:46]} Qc7 {[%emt 0:01:
42]} 15. c5 {[%emt 0:00:01]} Nc4 {[%emt 0:00:37]} 16. Qc1 {[%emt 0:00:08]} Bc8
{[%emt 0:04:02]} 17. Bxc8 {[%emt 0:01:43]} Rfxc8 {[%emt 0:03:04]} 18. b3 {
[%emt 0:01:34]} Na5 {[%emt 0:00:24]} 19. Qe3 {[%emt 0:08:56]} Rd8 {[%emt 0:02:
56]} 20. f4 {[%emt 0:02:11]} exf4 {[%emt 0:11:35]} 21. gxf4 {[%emt 0:02:31]} b4
{[%emt 0:01:44]} 22. Na4 {[%emt 0:01:02]} Rxd1+ {[%emt 0:01:10]} 23. Rxd1 {
[%emt 0:00:08]} Re8 {[%emt 0:00:43]} 24. Rd4 {[%emt 0:00:39]} Nb7 {[%emt 0:01:
35]} 25. Ng3 {[%emt 0:03:36]} g6 {[%emt 0:03:18]} 26. Qd2 {[%emt 0:01:15]} Rd8
{[%emt 0:04:12]} 27. Rxd8+ {[%emt 0:07:52]} Nxd8 {[%emt 0:00:35]} 28. Qd6 {
[%emt 0:00:41]} Ne8 {[%emt 0:01:29]} 29. Qxc7 {[%emt 0:00:15]} Nxc7 {[%emt 0:
00:02]} 30. Kf2 {[%emt 0:00:32]} Kg7 {[%emt 0:06:33]} 31. Ke3 {[%emt 0:00:10]}
a5 {[%emt 0:00:48]} 32. Ne2 {[%emt 0:02:22]} f5 {[%emt 0:01:56]} 33. Nd4 {
[%emt 0:00:18]} fxe4 {[%emt 0:01:52]} 34. Kxe4 {[%emt 0:00:44]} Kf6 {[%emt 0:
00:17]} 35. Nb6 {[%emt 0:00:40]} Na6 {[%emt 0:00:28]} 36. Na4 {[%emt 0:00:09]}
Nc7 {[%emt 0:00:44]} 37. Nb2 {[%emt 0:00:59]} Nce6 {[%emt 0:00:45]} 38. Nxe6 {
[%emt 0:00:15]} Nxe6 {[%emt 0:00:22]} 39. Nd3 {[%emt 0:00:29]} h6 {[%emt 0:00:
35]} 40. Ne5 {[%emt 0:00:00]} Nxc5+ {[%emt 0:00:00]} 41. Ke3 {[%emt 0:01:28]}
g5 {[%emt 0:08:54]} 42. Nxc6 {[%emt 0:01:35]} gxf4+ {[%emt 0:00:24]} 43. Kxf4 {
[%emt 0:00:22]} Nd3+ {[%emt 0:00:29]} 44. Ke4 {Ke5+} 1/2-1/2

[Event "ETCC Open 2013"]
[Site "Warsaw"]
[Date "2013.11.08"]
[Round "1"]
[White "Morrison, Graham"]
[Black "Solak, Dragan"]
[Result "1/2-1/2"]
[ECO "D12"]
[WhiteElo "2351"]
[BlackElo "2618"]
[PlyCount "82"]
[EventDate "2013.??.??"]
[EventCountry "POL"]
[WhiteTeam "Scotland"]
[BlackTeam "Turkey"]
[WhiteTeamCountry "SCO"]
[BlackTeamCountry "TUR"]
[TimeControl "40/5400+30:1800+30"]

1. d4 {[%emt 0:00:00]} d5 {[%emt 0:00:00]} 2. c4 {[%emt 0:00:00]} c6 {[%emt 0:
00:00]} 3. Nf3 {[%emt 0:00:05]} Nf6 {[%emt 0:00:00]} 4. e3 {[%emt 0:00:14]} Bf5
{[%emt 0:00:26]} 5. Nc3 {[%emt 0:00:17]} e6 {[%emt 0:00:04]} 6. Nh4 {[%emt 0:
00:22]} Be4 {[%emt 0:00:08]} 7. f3 {[%emt 0:00:31]} Bg6 {[%emt 0:00:05]} 8. Qb3
{[%emt 0:00:41]} Qc7 {[%emt 0:00:13]} 9. Bd2 {[%emt 0:00:59]} Be7 {[%emt 0:00:
08]} 10. Nxg6 {[%emt 0:29:56]} hxg6 {[%emt 0:00:14]} 11. g3 {[%emt 0:04:29]} a6
{[%emt 0:10:43]} 12. Kf2 {[%emt 0:05:29]} dxc4 {[%emt 0:04:58]} 13. Bxc4 {
[%emt 0:02:56]} b5 {[%emt 0:09:31]} 14. Be2 {[%emt 0:04:20]} c5 {[%emt 0:00:31]
} 15. dxc5 {[%emt 0:00:35]} Nbd7 {[%emt 0:03:00]} 16. Rac1 {[%emt 0:06:43]}
Nxc5 {[%emt 0:00:58]} 17. Qc2 {[%emt 0:01:54]} O-O {[%emt 0:09:57]} 18. b4 {
[%emt 0:04:55]} Ncd7 {[%emt 0:00:26]} 19. Nd5 {[%emt 0:01:57]} Nxd5 {[%emt 0:
08:53]} 20. Qxc7 {[%emt 0:00:10]} Nxc7 {[%emt 0:00:04]} 21. Rxc7 {[%emt 0:00:
08]} Rfd8 {[%emt 0:00:08]} 22. Rhc1 {[%emt 0:10:54]} Nb6 {[%emt 0:05:27]} 23.
R7c2 {[%emt 0:03:36]} Bf6 {[%emt 0:07:19]} 24. Be1 {[%emt 0:05:43]} g5 {[%emt
0:01:45]} 25. Rd1 {[%emt 0:03:33]} Rdc8 {[%emt 0:05:42]} 26. Rxc8+ {[%emt 0:03:
38]} Rxc8 {[%emt 0:00:07]} 27. Rd6 {[%emt 0:00:55]} Nd5 {[%emt 0:03:41]} 28.
Rxa6 {[%emt 0:00:41]} Rc2 {[%emt 0:00:22]} 29. a4 {[%emt 0:00:43]} bxa4 {[%emt
0:04:03]} 30. Rxa4 {[%emt 0:00:10]} Bc3 {[%emt 0:04:40]} 31. Ra8+ {[%emt 0:00:
12]} Kh7 {[%emt 0:00:04]} 32. b5 {[%emt 0:00:19]} f5 {[%emt 0:04:14]} 33. b6 {
[%emt 0:03:51]} Nxb6 {[%emt 0:00:14]} 34. Ra6 {[%emt 0:00:08]} Bxe1+ {[%emt 0:
03:57]} 35. Kxe1 {[%emt 0:00:07]} Rb2 {[%emt 0:00:25]} 36. e4 {[%emt 0:00:44]}
fxe4 {[%emt 0:04:52]} 37. fxe4 {[%emt 0:00:07]} Kg6 {[%emt 0:00:05]} 38. Ra7 {
[%emt 0:01:09]} Kf6 {[%emt 0:04:00]} 39. e5+ {[%emt 0:01:53]} Kxe5 {[%emt 0:00:
11]} 40. Rxg7 {[%emt 0:00:00]} Kf6 {[%emt 0:00:00]} 41. Rb7 {[%emt 0:00:28]}
Ke5 1/2-1/2